[Event "Chessable Masters - Torneo preliminare"]
[White "Michalik, Peter"]
[Black "Durarbayli, Vasif"]
[WhiteFideId "14907526"]
[BlackFideId "13402935"]
[WhiteElo "2526"]
[BlackElo "2531"]
[Result "1/2-1/2"]
[Round "8"]
[TimeControl "600+2"]
[Date "2023.03.13"]
[WhiteClock "0:04:49"]
[BlackClock "0:00:24"]

1. d4 {[%clk 0:10:01]}  Nf6 {[%clk 0:10:00]} 2. c4 {[%clk 0:10:02]}  e6 {[%clk 0:10:01]} 3. Nf3 {[%clk 0:10:04]}  b6 {[%clk 0:10:02]} 4. g3 {[%clk 0:10:04]}  Bb7 {[%clk 0:10:04]} 5. Bg2 {[%clk 0:10:05]}  Be7 {[%clk 0:10:05]} 6. O-O {[%clk 0:10:06]}  O-O {[%clk 0:10:07]} 7. Nc3 {[%clk 0:10:07]}  Ne4 {[%clk 0:10:07]} 8. Bd2 {[%clk 0:10:07]}  f5 {[%clk 0:10:02]} 9. d5 {[%clk 0:10:06]}  Bf6 {[%clk 0:09:15]} 10. Rc1 {[%clk 0:10:06]}  Na6 {[%clk 0:09:05]} 11. Be1 {[%clk 0:10:01]}  Nac5 {[%clk 0:08:34]} 12. Nd4 {[%clk 0:09:58]}  Qe8 {[%clk 0:07:30]} 13. Ndb5 {[%clk 0:09:51]}  Qc8 {[%clk 0:07:00]} 14. b4 {[%clk 0:09:40]}  Nxc3 {[%clk 0:06:43]} 15. Nxc3 {[%clk 0:09:40]}  Na6 {[%clk 0:06:43]} 16. Nb5 {[%clk 0:09:40]}  d6 {[%clk 0:06:23]} 17. e4 {[%clk 0:09:07]}  fxe4 {[%clk 0:06:09]} 18. Bxe4 {[%clk 0:09:06]}  e5 {[%clk 0:05:30]} 19. Bd2 {[%clk 0:09:05]}  Qd7 {[%clk 0:05:13]} 20. Be3 {[%clk 0:08:48]}  Nxb4 {[%clk 0:04:47]} 21. a4 {[%clk 0:08:48]}  a5 {[%clk 0:04:16]} 22. h4 {[%clk 0:08:34]}  Rae8 {[%clk 0:03:52]} 23. Kg2 {[%clk 0:08:33]}  Bc8 {[%clk 0:03:51]} 24. Rh1 {[%clk 0:08:34]}  Bd8 {[%clk 0:03:37]} 25. Na7 {[%clk 0:08:23]}  Ba6 {[%clk 0:03:11]} 26. Nc6 {[%clk 0:08:13]}  Nxc6 {[%clk 0:02:04]} 27. dxc6 {[%clk 0:08:15]}  Qf7 {[%clk 0:01:46]} 28. Bd5 {[%clk 0:08:12]}  Re6 {[%clk 0:01:48]} 29. Bxe6 {[%clk 0:07:49]}  Qxe6 {[%clk 0:01:50]} 30. Qd5 {[%clk 0:07:49]}  Bc8 {[%clk 0:01:49]} 31. Bg5 {[%clk 0:07:41]}  Qxd5+ {[%clk 0:00:37]} 32. cxd5 {[%clk 0:07:42]}  Bg4 {[%clk 0:00:39]} 33. f4 {[%clk 0:07:27]}  Bxg5 {[%clk 0:00:21]} 34. hxg5 {[%clk 0:07:29]}  exf4 {[%clk 0:00:22]} 35. gxf4 {[%clk 0:07:30]}  Rxf4 {[%clk 0:00:24]} 36. Kg3 {[%clk 0:07:31]}  Re4 {[%clk 0:00:19]} 37. Rce1 {[%clk 0:07:22]}  Bf5 {[%clk 0:00:19]} 38. Rhf1 {[%clk 0:06:28]}  Rxe1 {[%clk 0:00:13]} 39. Rxe1 {[%clk 0:06:30]}  Kf7 {[%clk 0:00:14]} 40. Re2 {[%clk 0:06:01]}  Bd3 {[%clk 0:00:12]} 41. Rf2+ {[%clk 0:06:02]}  Ke7 {[%clk 0:00:13]} 42. Kf4 {[%clk 0:06:02]}  Bg6 {[%clk 0:00:12]} 43. Ke3 {[%clk 0:05:59]}  Bb1 {[%clk 0:00:11]} 44. Kd4 {[%clk 0:05:59]}  Bg6 {[%clk 0:00:08]} 45. Kc4 {[%clk 0:05:55]}  h5 {[%clk 0:00:08]} 46. Rf4 {[%clk 0:05:47]}  Bc2 {[%clk 0:00:06]} 47. Kc3 {[%clk 0:05:47]}  Bb1 {[%clk 0:00:05]} 48. Rf1 {[%clk 0:05:44]}  Bg6 {[%clk 0:00:05]} 49. Rh1 {[%clk 0:05:44]}  Kf7 {[%clk 0:00:06]} 50. Rh4 {[%clk 0:05:41]}  Kf8 {[%clk 0:00:05]} 51. Kc4 {[%clk 0:05:42]}  Ke7 {[%clk 0:00:03]} 52. Rh3 {[%clk 0:05:43]}  Bc2 {[%clk 0:00:03]} 53. Kb5 {[%clk 0:05:43]}  Bf5 {[%clk 0:00:04]} 54. Re3+ {[%clk 0:05:39]}  Kd8 {[%clk 0:00:06]} 55. Kc4 {[%clk 0:05:36]}  h4 {[%clk 0:00:07]} 56. Rf3 {[%clk 0:05:30]}  g6 {[%clk 0:00:08]} 57. Rf4 {[%clk 0:05:31]}  h3 {[%clk 0:00:08]} 58. Rh4 {[%clk 0:05:32]}  Ke7 {[%clk 0:00:05]} 59. Rh7+ {[%clk 0:05:29]}  Kf8 {[%clk 0:00:05]} 60. Kd4 {[%clk 0:05:26]}  Kg8 {[%clk 0:00:06]} 61. Rh4 {[%clk 0:05:27]}  Kg7 {[%clk 0:00:07]} 62. Ke3 {[%clk 0:05:28]}  Kg8 {[%clk 0:00:04]} 63. Kf4 {[%clk 0:05:29]}  Kg7 {[%clk 0:00:05]} 64. Kg3 {[%clk 0:05:31]}  Kg8 {[%clk 0:00:06]} 65. Rf4 {[%clk 0:05:31]}  Kg7 {[%clk 0:00:07]} 66. Rd4 {[%clk 0:05:30]}  Kg8 {[%clk 0:00:08]} 67. Rd2 {[%clk 0:05:31]}  Kg7 {[%clk 0:00:09]} 68. Re2 {[%clk 0:05:33]}  Kf7 {[%clk 0:00:09]} 69. Kh2 {[%clk 0:05:33]}  Kf8 {[%clk 0:00:10]} 70. Re1 {[%clk 0:05:33]}  Kf7 {[%clk 0:00:11]} 71. Kg3 {[%clk 0:05:35]}  Kf8 {[%clk 0:00:12]} 72. Re2 {[%clk 0:05:33]}  Kf7 {[%clk 0:00:14]} 73. Rb2 {[%clk 0:05:34]}  Kf8 {[%clk 0:00:12]} 74. Kf4 {[%clk 0:05:35]}  Kf7 {[%clk 0:00:13]} 75. Kf3 {[%clk 0:05:34]}  Kf8 {[%clk 0:00:14]} 76. Rd2 {[%clk 0:05:36]}  Kf7 {[%clk 0:00:15]} 77. Rd4 {[%clk 0:05:37]}  Kf8 {[%clk 0:00:16]} 78. Rh4 {[%clk 0:05:39]}  Kg7 {[%clk 0:00:18]} 79. Kg3 {[%clk 0:05:34]}  Kg8 {[%clk 0:00:19]} 80. Rf4 {[%clk 0:05:25]}  Kg7 {[%clk 0:00:18]} 81. Rf1 {[%clk 0:05:26]}  Kg8 {[%clk 0:00:19]} 82. Re1 {[%clk 0:05:26]}  Kf7 {[%clk 0:00:20]} 83. Re3 {[%clk 0:05:22]}  Kf8 {[%clk 0:00:21]} 84. Kh2 {[%clk 0:05:21]}  Kf7 {[%clk 0:00:22]} 85. Kg3 {[%clk 0:04:47]}  Kf8 {[%clk 0:00:23]} 86. Re2 {[%clk 0:04:49]}  Kf7 {[%clk 0:00:24]} 1/2-1/2


[Site "Internet"]

[Event "Chessable Masters - Torneo preliminare"]
[White "Henriquez Villagra, Cristobal"]
[Black "Sarana, Alexey"]
[WhiteFideId "3409350"]
[BlackFideId "24133795"]
[WhiteElo "2574"]
[BlackElo "2643"]
[Result "1/2-1/2"]
[Round "8"]
[TimeControl "600+2"]
[Date "2023.03.13"]
[WhiteClock "0:00:18"]
[BlackClock "0:04:39"]

1. e4 {[%clk 0:10:01]}  c5 {[%clk 0:10:01]} 2. Nc3 {[%clk 0:10:02]}  d6 {[%clk 0:10:03]} 3. g3 {[%clk 0:09:56]}  g6 {[%clk 0:10:03]} 4. Bg2 {[%clk 0:09:57]}  Bg7 {[%clk 0:10:04]} 5. d3 {[%clk 0:09:58]}  Nc6 {[%clk 0:10:05]} 6. f4 {[%clk 0:09:58]}  Nf6 {[%clk 0:10:03]} 7. Nf3 {[%clk 0:09:56]}  O-O {[%clk 0:10:03]} 8. O-O {[%clk 0:09:56]}  Rb8 {[%clk 0:10:04]} 9. Re1 {[%clk 0:09:39]}  b5 {[%clk 0:10:02]} 10. a3 {[%clk 0:09:40]}  a5 {[%clk 0:10:02]} 11. a4 {[%clk 0:09:41]}  b4 {[%clk 0:10:02]} 12. Nb5 {[%clk 0:09:42]}  Ba6 {[%clk 0:09:59]} 13. c4 {[%clk 0:09:43]}  bxc3 {[%clk 0:09:53]} 14. bxc3 {[%clk 0:09:45]}  Nd7 {[%clk 0:09:54]} 15. Qb3 {[%clk 0:09:13]}  Na7 {[%clk 0:09:43]} 16. e5 {[%clk 0:08:30]}  dxe5 {[%clk 0:09:14]} 17. fxe5 {[%clk 0:08:25]}  Nxb5 {[%clk 0:08:54]} 18. axb5 {[%clk 0:08:25]}  Bxb5 {[%clk 0:08:56]} 19. Qc2 {[%clk 0:07:36]}  e6 {[%clk 0:08:41]} 20. Bg5 {[%clk 0:07:02]}  Qc7 {[%clk 0:08:41]} 21. Be7 {[%clk 0:06:42]}  Nxe5 {[%clk 0:08:20]} 22. Bxf8 {[%clk 0:06:42]}  Nxf3+ {[%clk 0:08:13]} 23. Bxf3 {[%clk 0:06:44]}  Rxf8 {[%clk 0:08:15]} 24. Rab1 {[%clk 0:06:38]}  Bd7 {[%clk 0:08:14]} 25. Rb7 {[%clk 0:06:32]}  Qd6 {[%clk 0:08:15]} 26. Ra7 {[%clk 0:06:16]}  a4 {[%clk 0:07:57]} 27. Rb1 {[%clk 0:06:14]}  Rd8 {[%clk 0:07:57]} 28. Rbb7 {[%clk 0:06:11]}  h5 {[%clk 0:07:53]} 29. Be4 {[%clk 0:06:09]}  Be8 {[%clk 0:07:44]} 30. Bxg6 {[%clk 0:05:54]}  Rd7 {[%clk 0:07:11]} 31. Rxd7 {[%clk 0:04:01]}  Bxd7 {[%clk 0:07:12]} 32. Bxh5 {[%clk 0:03:59]}  Qd5 {[%clk 0:07:08]} 33. Qf2 {[%clk 0:03:01]}  Qxh5 {[%clk 0:07:03]} 34. Rxd7 {[%clk 0:03:01]}  Bxc3 {[%clk 0:07:04]} 35. Kg2 {[%clk 0:02:58]}  a3 {[%clk 0:07:05]} 36. Ra7 {[%clk 0:02:42]}  Bb2 {[%clk 0:06:51]} 37. Qf3 {[%clk 0:02:43]}  Qg6 {[%clk 0:06:48]} 38. h4 {[%clk 0:02:42]}  Kg7 {[%clk 0:06:48]} 39. h5 {[%clk 0:02:38]}  Qf6 {[%clk 0:06:41]} 40. h6+ {[%clk 0:02:15]}  Kxh6 {[%clk 0:05:24]} 41. Qxf6+ {[%clk 0:02:12]}  Bxf6 {[%clk 0:05:26]} 42. Rxa3 {[%clk 0:01:37]}  Bd4 {[%clk 0:05:25]} 43. Kf3 {[%clk 0:01:28]}  Kg5 {[%clk 0:05:25]} 44. Ra7 {[%clk 0:01:25]}  f5 {[%clk 0:05:25]} 45. Ra6 {[%clk 0:01:21]}  Kf6 {[%clk 0:05:26]} 46. Rc6 {[%clk 0:01:21]}  Ke5 {[%clk 0:05:27]} 47. Rc8 {[%clk 0:01:20]}  Kd5 {[%clk 0:05:27]} 48. g4 {[%clk 0:01:20]}  fxg4+ {[%clk 0:05:27]} 49. Kxg4 {[%clk 0:01:21]}  Bf6 {[%clk 0:05:23]} 50. Kf3 {[%clk 0:01:19]}  Kd4 {[%clk 0:05:14]} 51. Ke2 {[%clk 0:01:19]}  Kd5 {[%clk 0:05:15]} 52. Rf8 {[%clk 0:01:14]}  Be7 {[%clk 0:05:15]} 53. Rf4 {[%clk 0:01:10]}  Bd6 {[%clk 0:05:16]} 54. Rh4 {[%clk 0:01:11]}  Be5 {[%clk 0:05:17]} 55. Kd2 {[%clk 0:01:02]}  Bd4 {[%clk 0:05:17]} 56. Rh5+ {[%clk 0:01:03]}  Kd6 {[%clk 0:04:50]} 57. Ke2 {[%clk 0:01:03]}  Kc6 {[%clk 0:04:51]} 58. Kf3 {[%clk 0:01:02]}  Kd6 {[%clk 0:04:50]} 59. Ke4 {[%clk 0:01:04]}  Bc3 {[%clk 0:04:50]} 60. Rh2 {[%clk 0:00:56]}  Bd4 {[%clk 0:04:50]} 61. Ra2 {[%clk 0:00:58]}  Ke7 {[%clk 0:04:50]} 62. Ra6 {[%clk 0:00:56]}  Kf6 {[%clk 0:04:50]} 63. Ra7 {[%clk 0:00:56]}  Bg1 {[%clk 0:04:50]} 64. Rd7 {[%clk 0:00:52]}  Bd4 {[%clk 0:04:51]} 65. Kf3 {[%clk 0:00:52]}  Kf5 {[%clk 0:04:50]} 66. Ke2 {[%clk 0:00:54]}  Ke5 {[%clk 0:04:48]} 67. Kd2 {[%clk 0:00:55]}  Kf5 {[%clk 0:04:48]} 68. Kc2 {[%clk 0:00:56]}  Kf4 {[%clk 0:04:48]} 69. Kb3 {[%clk 0:00:56]}  Kf5 {[%clk 0:04:38]} 70. Kc4 {[%clk 0:00:57]}  Ke5 {[%clk 0:04:37]} 71. Rf7 {[%clk 0:00:57]}  Kd6 {[%clk 0:04:37]} 72. Kb5 {[%clk 0:00:58]}  Be3 {[%clk 0:04:37]} 73. Rf8 {[%clk 0:00:56]}  Kd7 {[%clk 0:04:37]} 74. Ra8 {[%clk 0:00:42]}  Bd4 {[%clk 0:04:37]} 75. Ra4 {[%clk 0:00:36]}  Kd6 {[%clk 0:04:35]} 76. Ra8 {[%clk 0:00:37]}  Kd7 {[%clk 0:04:36]} 77. Ka6 {[%clk 0:00:37]}  Kc7 {[%clk 0:04:32]} 78. Rg8 {[%clk 0:00:34]}  Be3 {[%clk 0:04:30]} 79. Rg3 {[%clk 0:00:31]}  Bd4 {[%clk 0:04:31]} 80. Rg6 {[%clk 0:00:28]}  Kd6 {[%clk 0:04:32]} 81. Kb7 {[%clk 0:00:21]}  c4 {[%clk 0:04:28]} 82. dxc4 {[%clk 0:00:19]}  Kc5 {[%clk 0:04:29]} 83. Rxe6 {[%clk 0:00:20]}  Kxc4 {[%clk 0:04:30]} 84. Kc6 {[%clk 0:00:21]}  Kd3 {[%clk 0:04:32]} 85. Kd5 {[%clk 0:00:22]}  Ba7 {[%clk 0:04:33]} 86. Ra6 {[%clk 0:00:23]}  Bb8 {[%clk 0:04:31]} 87. Ra3+ {[%clk 0:00:23]}  Ke2 {[%clk 0:04:32]} 88. Ke4 {[%clk 0:00:24]}  Kf2 {[%clk 0:04:33]} 89. Rf3+ {[%clk 0:00:18]}  Kg2 {[%clk 0:04:34]} 90. Rf8 {[%clk 0:00:10]}  Bd6 {[%clk 0:04:35]} 91. Rg8+ {[%clk 0:00:12]}  Kf2 {[%clk 0:04:34]} 92. Rg6 {[%clk 0:00:13]}  Bc7 {[%clk 0:04:35]} 93. Rg7 {[%clk 0:00:14]}  Bb8 {[%clk 0:04:36]} 94. Rg6 {[%clk 0:00:14]}  Bc7 {[%clk 0:04:36]} 95. Rg7 {[%clk 0:00:16]}  Bb8 {[%clk 0:04:37]} 96. Rg6 {[%clk 0:00:18]}  Bc7 {[%clk 0:04:39]} 1/2-1/2


[Site "Internet"]

[Event "Chessable Masters - Torneo preliminare"]
[White "Tari, Aryan"]
[Black "Mamedyarov, Shakhriyar"]
[WhiteFideId "1510045"]
[BlackFideId "13401319"]
[WhiteElo "2539"]
[BlackElo "2703"]
[Result "0-1"]
[Round "8"]
[TimeControl "600+2"]
[Date "2023.03.13"]
[WhiteClock "0:00:04"]
[BlackClock "0:02:32"]

1. e4 {[%clk 0:09:54]}  e5 {[%clk 0:10:00]} 2. Nf3 {[%clk 0:09:55]}  Nc6 {[%clk 0:10:01]} 3. d4 {[%clk 0:09:47]}  exd4 {[%clk 0:10:01]} 4. Nxd4 {[%clk 0:09:48]}  Nf6 {[%clk 0:10:00]} 5. Nxc6 {[%clk 0:09:49]}  bxc6 {[%clk 0:10:02]} 6. Nd2 {[%clk 0:09:50]}  d5 {[%clk 0:10:01]} 7. exd5 {[%clk 0:09:46]}  cxd5 {[%clk 0:10:02]} 8. Bb5+ {[%clk 0:09:47]}  Bd7 {[%clk 0:10:03]} 9. Bxd7+ {[%clk 0:09:48]}  Qxd7 {[%clk 0:10:04]} 10. O-O {[%clk 0:09:48]}  Be7 {[%clk 0:10:04]} 11. b3 {[%clk 0:09:49]}  O-O {[%clk 0:10:04]} 12. Bb2 {[%clk 0:09:50]}  a5 {[%clk 0:10:04]} 13. a4 {[%clk 0:09:51]}  Rfe8 {[%clk 0:09:55]} 14. Qf3 {[%clk 0:09:44]}  Ra6 {[%clk 0:09:49]} 15. Rad1 {[%clk 0:09:24]}  Bb4 {[%clk 0:09:30]} 16. Nc4 {[%clk 0:08:01]}  Ne4 {[%clk 0:09:04]} 17. Qd3 {[%clk 0:07:04]}  Rd8 {[%clk 0:08:12]} 18. Ne5 {[%clk 0:06:51]}  Qc8 {[%clk 0:08:04]} 19. c4 {[%clk 0:06:29]}  f6 {[%clk 0:07:37]} 20. Nf3 {[%clk 0:05:15]}  c6 {[%clk 0:07:22]} 21. Nd4 {[%clk 0:04:51]}  Bc5 {[%clk 0:06:46]} 22. cxd5 {[%clk 0:03:57]}  cxd5 {[%clk 0:06:46]} 23. f3 {[%clk 0:03:12]}  Ng5 {[%clk 0:06:37]} 24. Kh1 {[%clk 0:03:08]}  Bxd4 {[%clk 0:06:36]} 25. Bxd4 {[%clk 0:03:08]}  Ne6 {[%clk 0:06:35]} 26. Rfe1 {[%clk 0:02:59]}  Rc6 {[%clk 0:06:21]} 27. Qd2 {[%clk 0:02:32]}  Nxd4 {[%clk 0:06:07]} 28. Qxd4 {[%clk 0:02:32]}  Qc7 {[%clk 0:06:02]} 29. h3 {[%clk 0:02:12]}  h6 {[%clk 0:06:03]} 30. Re3 {[%clk 0:02:03]}  Rc1 {[%clk 0:05:37]} 31. Rxc1 {[%clk 0:02:03]}  Qxc1+ {[%clk 0:05:39]} 32. Kh2 {[%clk 0:02:04]}  Qc7+ {[%clk 0:05:40]} 33. f4 {[%clk 0:01:57]}  Kh8 {[%clk 0:05:28]} 34. Rc3 {[%clk 0:01:46]}  Qb8 {[%clk 0:05:29]} 35. Rc5 {[%clk 0:01:32]}  Qb6 {[%clk 0:05:30]} 36. Qe3 {[%clk 0:01:11]}  d4 {[%clk 0:04:51]} 37. Qe7 {[%clk 0:01:12]}  d3 {[%clk 0:04:50]} 38. Rc7 {[%clk 0:01:07]}  Rg8 {[%clk 0:04:50]} 39. Rd7 {[%clk 0:00:58]}  Qxb3 {[%clk 0:04:40]} 40. Qe4 {[%clk 0:00:59]}  Qb8 {[%clk 0:03:52]} 41. Rxd3 {[%clk 0:00:59]}  Re8 {[%clk 0:03:53]} 42. Qd4 {[%clk 0:00:55]}  Qb7 {[%clk 0:03:50]} 43. Re3 {[%clk 0:00:38]}  Rc8 {[%clk 0:03:50]} 44. Qe4 {[%clk 0:00:33]}  Qb6 {[%clk 0:03:43]} 45. Rd3 {[%clk 0:00:32]}  Qc7 {[%clk 0:03:29]} 46. Rb3 {[%clk 0:00:32]}  Qc4 {[%clk 0:03:21]} 47. Qf5 {[%clk 0:00:33]}  Ra8 {[%clk 0:02:50]} 48. Ra3 {[%clk 0:00:32]}  Qb4 {[%clk 0:02:50]} 49. Ra2 {[%clk 0:00:26]}  Rd8 {[%clk 0:02:51]} 50. Qg4 {[%clk 0:00:21]}  Qe4 {[%clk 0:02:44]} 51. Qg3 {[%clk 0:00:13]}  Rd4 {[%clk 0:02:43]} 52. Rf2 {[%clk 0:00:05]}  Rxa4 {[%clk 0:02:44]} 53. f5 {[%clk 0:00:06]}  Rb4 {[%clk 0:02:36]} 54. Qg6 {[%clk 0:00:05]}  Qe5+ {[%clk 0:02:36]} 55. g3 {[%clk 0:00:07]}  Rb2 {[%clk 0:02:35]} 56. Rxb2 {[%clk 0:00:04]}  Qxb2+ {[%clk 0:02:37]} 57. Kh1 {[%clk 0:00:05]}  Qe5 {[%clk 0:02:36]} 58. Qg4 {[%clk 0:00:04]}  Qe8 {[%clk 0:02:29]} 59. h4 {[%clk 0:00:03]}  a4 {[%clk 0:02:30]} 60. Qb4 {[%clk 0:00:04]}  Qa8+ {[%clk 0:02:31]} 61. Kh2 {[%clk 0:00:04]}  a3 {[%clk 0:02:32]} 0-1


[Site "Internet"]

[Event "Chessable Masters - Torneo preliminare"]
[White "Nguyen, Ngoc Truong Son"]
[Black "Sjugirov, Sanan"]
[WhiteFideId "12401110"]
[BlackFideId "4189302"]
[WhiteElo "2585"]
[BlackElo "2543"]
[Result "1/2-1/2"]
[Round "8"]
[TimeControl "600+2"]
[Date "2023.03.13"]
[WhiteClock "0:02:05"]
[BlackClock "0:03:01"]

1. d4 {[%clk 0:09:59]}  Nf6 {[%clk 0:10:00]} 2. c4 {[%clk 0:09:59]}  e6 {[%clk 0:10:01]} 3. Nc3 {[%clk 0:09:59]}  Bb4 {[%clk 0:10:01]} 4. e3 {[%clk 0:10:01]}  O-O {[%clk 0:09:57]} 5. Bd2 {[%clk 0:10:01]}  d5 {[%clk 0:09:32]} 6. Nf3 {[%clk 0:10:00]}  c5 {[%clk 0:09:26]} 7. a3 {[%clk 0:10:00]}  Bxc3 {[%clk 0:09:22]} 8. Bxc3 {[%clk 0:10:02]}  cxd4 {[%clk 0:09:21]} 9. Bxd4 {[%clk 0:09:05]}  Nc6 {[%clk 0:09:13]} 10. Bc3 {[%clk 0:08:23]}  Ne4 {[%clk 0:09:11]} 11. Rc1 {[%clk 0:08:23]}  dxc4 {[%clk 0:08:51]} 12. Qxd8 {[%clk 0:08:17]}  Rxd8 {[%clk 0:08:53]} 13. Bxc4 {[%clk 0:08:17]}  Bd7 {[%clk 0:08:44]} 14. Ke2 {[%clk 0:08:09]}  Be8 {[%clk 0:08:26]} 15. Bd4 {[%clk 0:07:04]}  Nxd4+ {[%clk 0:07:28]} 16. Nxd4 {[%clk 0:07:02]}  Nd6 {[%clk 0:07:26]} 17. f4 {[%clk 0:06:58]}  Kf8 {[%clk 0:06:55]} 18. Bd3 {[%clk 0:06:25]}  h6 {[%clk 0:05:52]} 19. Rc7 {[%clk 0:05:52]}  Rac8 {[%clk 0:05:51]} 20. Rhc1 {[%clk 0:05:52]}  Rxc7 {[%clk 0:05:49]} 21. Rxc7 {[%clk 0:05:53]}  Rc8 {[%clk 0:05:36]} 22. Rxc8 {[%clk 0:05:53]}  Nxc8 {[%clk 0:05:38]} 23. e4 {[%clk 0:05:50]}  Ke7 {[%clk 0:05:32]} 24. Ke3 {[%clk 0:05:19]}  Nb6 {[%clk 0:05:30]} 25. b3 {[%clk 0:05:13]}  f6 {[%clk 0:05:24]} 26. Nf3 {[%clk 0:03:22]}  Bh5 {[%clk 0:04:54]} 27. Nd2 {[%clk 0:03:21]}  e5 {[%clk 0:04:50]} 28. fxe5 {[%clk 0:03:20]}  fxe5 {[%clk 0:04:51]} 29. Nc4 {[%clk 0:03:20]}  Nxc4+ {[%clk 0:04:24]} 30. Bxc4 {[%clk 0:03:22]}  Kd6 {[%clk 0:04:11]} 31. b4 {[%clk 0:03:22]}  b6 {[%clk 0:04:11]} 32. g3 {[%clk 0:03:21]}  Bg4 {[%clk 0:04:09]} 33. Bb5 {[%clk 0:03:11]}  a5 {[%clk 0:04:07]} 34. Bc4 {[%clk 0:03:07]}  Kc6 {[%clk 0:04:05]} 35. h4 {[%clk 0:03:01]}  Bd1 {[%clk 0:03:52]} 36. Kd2 {[%clk 0:03:00]}  Bh5 {[%clk 0:03:49]} 37. Ke3 {[%clk 0:03:00]}  Kd6 {[%clk 0:03:41]} 38. Bd3 {[%clk 0:02:57]}  axb4 {[%clk 0:03:41]} 39. axb4 {[%clk 0:02:58]}  Ke7 {[%clk 0:03:38]} 40. Bc4 {[%clk 0:02:57]}  Bg4 {[%clk 0:03:38]} 41. Bb5 {[%clk 0:02:54]}  Kf6 {[%clk 0:03:39]} 42. Bc4 {[%clk 0:02:49]}  g5 {[%clk 0:03:39]} 43. hxg5+ {[%clk 0:02:45]}  Kxg5 {[%clk 0:03:41]} 44. Bd3 {[%clk 0:02:44]}  Bd1 {[%clk 0:03:37]} 45. Bc4 {[%clk 0:02:35]}  Bc2 {[%clk 0:03:31]} 46. Be6 {[%clk 0:02:27]}  Ba4 {[%clk 0:03:24]} 47. Kf3 {[%clk 0:02:21]}  Bb5 {[%clk 0:03:23]} 48. Ke3 {[%clk 0:02:21]}  h5 {[%clk 0:03:14]} 49. Kf3 {[%clk 0:02:20]}  h4 {[%clk 0:03:06]} 50. gxh4+ {[%clk 0:02:20]}  Kxh4 {[%clk 0:03:08]} 51. Bf5 {[%clk 0:02:11]}  Bc4 {[%clk 0:03:05]} 52. Bd7 {[%clk 0:02:11]}  Bf7 {[%clk 0:03:06]} 53. Bb5 {[%clk 0:02:06]}  Bh5+ {[%clk 0:03:05]} 54. Ke3 {[%clk 0:02:06]}  Kg3 {[%clk 0:03:06]} 55. Bc4 {[%clk 0:02:06]}  Bg4 {[%clk 0:03:04]} 56. Bb5 {[%clk 0:02:05]}  Be6 {[%clk 0:03:01]} 57. Bd3 {[%clk 0:02:05]} 1/2-1/2


[Site "Internet"]

[Event "Chessable Masters - Torneo preliminare"]
[White "Anton Guijarro, David"]
[Black "Makarian, Rudik"]
[WhiteFideId "2285525"]
[BlackFideId "44105681"]
[WhiteElo "2635"]
[BlackElo "2462"]
[Result "1/2-1/2"]
[Round "8"]
[TimeControl "600+2"]
[Date "2023.03.13"]
[WhiteClock "0:01:05"]
[BlackClock "0:00:21"]

1. Nf3 {[%clk 0:10:01]}  Nf6 {[%clk 0:09:59]} 2. b3 {[%clk 0:10:02]}  e6 {[%clk 0:09:54]} 3. Bb2 {[%clk 0:10:02]}  Be7 {[%clk 0:09:55]} 4. g3 {[%clk 0:09:59]}  b5 {[%clk 0:09:56]} 5. d3 {[%clk 0:09:39]}  O-O {[%clk 0:09:51]} 6. e4 {[%clk 0:09:37]}  d5 {[%clk 0:09:47]} 7. e5 {[%clk 0:09:18]}  Nfd7 {[%clk 0:09:47]} 8. c4 {[%clk 0:09:18]}  dxc4 {[%clk 0:08:33]} 9. dxc4 {[%clk 0:09:17]}  Bb7 {[%clk 0:08:11]} 10. Bg2 {[%clk 0:08:37]}  bxc4 {[%clk 0:08:09]} 11. bxc4 {[%clk 0:08:28]}  Nb6 {[%clk 0:06:55]} 12. Nbd2 {[%clk 0:07:58]}  Na6 {[%clk 0:06:40]} 13. O-O {[%clk 0:07:48]}  Nc5 {[%clk 0:06:41]} 14. Bd4 {[%clk 0:07:26]}  Qc8 {[%clk 0:05:57]} 15. Qc2 {[%clk 0:06:54]}  Nbd7 {[%clk 0:05:36]} 16. Rfe1 {[%clk 0:06:10]}  Rb8 {[%clk 0:05:37]} 17. Nb3 {[%clk 0:06:09]}  Bc6 {[%clk 0:05:22]} 18. Nxc5 {[%clk 0:05:42]}  Bxf3 {[%clk 0:05:13]} 19. Nxd7 {[%clk 0:05:29]}  Qxd7 {[%clk 0:05:12]} 20. Bxa7 {[%clk 0:05:28]}  Bxg2 {[%clk 0:05:05]} 21. Kxg2 {[%clk 0:05:28]}  Ra8 {[%clk 0:05:03]} 22. Be3 {[%clk 0:05:23]}  Qc6+ {[%clk 0:05:03]} 23. Kg1 {[%clk 0:05:19]}  Ra4 {[%clk 0:05:03]} 24. c5 {[%clk 0:05:13]}  h5 {[%clk 0:04:59]} 25. Qe2 {[%clk 0:03:53]}  h4 {[%clk 0:04:53]} 26. Qf1 {[%clk 0:03:54]}  Rfa8 {[%clk 0:04:31]} 27. Qg2 {[%clk 0:03:49]}  Qxg2+ {[%clk 0:04:30]} 28. Kxg2 {[%clk 0:03:51]}  hxg3 {[%clk 0:04:30]} 29. hxg3 {[%clk 0:03:52]}  Rxa2 {[%clk 0:02:31]} 30. Rxa2 {[%clk 0:03:54]}  Rxa2 {[%clk 0:02:33]} 31. Rd1 {[%clk 0:03:54]}  Ra5 {[%clk 0:02:34]} 32. c6 {[%clk 0:03:51]}  Bc5 {[%clk 0:02:19]} 33. Rd7 {[%clk 0:02:24]}  Bxe3 {[%clk 0:02:14]} 34. fxe3 {[%clk 0:02:25]}  Rxe5 {[%clk 0:02:14]} 35. Rxc7 {[%clk 0:02:26]}  Rxe3 {[%clk 0:01:56]} 36. Rd7 {[%clk 0:02:27]}  Rc3 {[%clk 0:01:44]} 37. c7 {[%clk 0:02:27]}  Kh7 {[%clk 0:01:46]} 38. Rxf7 {[%clk 0:02:29]}  Kg6 {[%clk 0:01:37]} 39. Rd7 {[%clk 0:02:28]}  Kf6 {[%clk 0:01:05]} 40. Kf2 {[%clk 0:02:27]}  g5 {[%clk 0:00:56]} 41. Ke2 {[%clk 0:02:20]}  Kf5 {[%clk 0:00:38]} 42. Kd2 {[%clk 0:02:13]}  Rc6 {[%clk 0:00:38]} 43. Ke3 {[%clk 0:02:10]}  Kg4 {[%clk 0:00:37]} 44. Rg7 {[%clk 0:02:10]}  e5 {[%clk 0:00:16]} 45. Ke4 {[%clk 0:01:36]}  Rc5 {[%clk 0:00:17]} 46. Ke3 {[%clk 0:01:33]}  Rc3+ {[%clk 0:00:17]} 47. Ke4 {[%clk 0:01:22]}  Rc5 {[%clk 0:00:18]} 48. Ke3 {[%clk 0:01:13]}  Rc3+ {[%clk 0:00:19]} 49. Ke4 {[%clk 0:01:05]}  Rc5 {[%clk 0:00:21]} 1/2-1/2


[Site "Internet"]